bitfinex/quotes_SOLUSD_20260222
["timestamp","ask_amount","ask_price","bid_price","bid_amount"]
[1771804027628,0.41349097,82.639,82.603,0.69329193]
[1771804030930,0.41349097,82.639,82.605,0.59686474]
[1771804031311,12.51445622,82.639,82.605,0.59686474]
[1771804031539,0.39729195,82.638,82.605,0.59686474]
[1771804032631,0.39416292,82.636,82.607,0.59686474]
[1771804035529,0.39416292,82.636,82.609,0.59686474]
[1771804037538,0.37612922,82.634,82.602,0.59241083]
[1771804037722,0.37612922,82.629,82.602,0.59241083]
[1771804039533,12.47180028,82.635,82.604,0.59241083]
[1771804039739,12.10058922,82.641,82.611,0.59241083]
[1771804041255,0.36757043,82.658,82.622,0.28432314]
[1771804041423,12.09789617,82.659,82.631,0.59241083]
[1771804041622,12.09789617,82.659,82.632,0.59241083]
[1771804043132,0.36202716,82.659,82.632,0.59241083]
[1771804045225,3.15364498,82.66,82.634,0.59241083]
[1771804045527,12.09650444,82.669,82.634,0.59241083]
[1771804047944,3.15364498,82.68,82.643,0.59241083]
[1771804048127,0.34871658,82.679,82.643,0.59241083]
[1771804048523,3.15364498,82.68,82.653,0.59241083]
[1771804048723,0.34614549,82.679,82.653,0.59241083]
[1771804049128,3.15364498,82.68,82.653,0.59241083]
[1771804049543,3.49724892,82.69,82.653,0.59241083]
[1771804049735,3.15364498,82.69,82.653,0.59241083]
[1771804050447,12.43418658,82.709,82.663,0.59241083]
[1771804050746,3.15364498,82.68,82.654,12.09862801]
[1771804050942,0.59736438,82.679,82.654,12.09862801]
[1771804051129,0.59736438,82.679,82.642,12.10038479]
[1771804051330,3.15364498,82.67,82.642,12.10038479]
[1771804052430,0.59736438,82.674,82.634,3.69383402]
[1771804052742,0.59736438,82.679,82.641,0.59241083]
[1771804053347,3.15364498,82.68,82.643,0.59241083]
[1771804053536,0.59736438,82.685,82.649,0.59241083]
[1771804054050,0.59736438,82.669,82.649,0.59241083]
[1771804055046,0.59736438,82.669,82.649,12.69169373]
[1771804055251,0.59736438,82.669,82.65,0.59241083]
[1771804055949,0.59736438,82.687,82.65,0.59241083]
[1771804056945,3.75100936,82.68,82.65,0.59241083]
[1771804058442,0.58648042,82.685,82.652,0.57151241]
[1771804060448,0.58648042,82.683,82.653,12.09877439]
[1771804060749,0.58648042,82.683,82.654,0.57151241]
[1771804061652,0.58648042,82.683,82.656,0.57151241]
[1771804061842,3.15364498,82.68,82.656,0.57151241]
[1771804062252,0.58648042,82.679,82.65,0.57151241]
[1771804062557,0.58648042,82.659,82.626,0.57151241]
[1771804062754,0.58648042,82.659,82.627,0.57151241]
[1771804063353,3.15364498,82.65,82.627,0.57151241]
[1771804063659,0.58648042,82.652,82.629,0.57151241]
[1771804065762,0.58648042,82.652,82.631,0.57151241]
[1771804066053,15.83789594,82.66,82.631,0.57151241]
[1771804066259,0.58648042,82.659,82.631,0.57151241]
[1771804066644,0.58648042,82.669,82.631,0.57151241]
[1771804068865,0.58648042,82.669,82.633,0.57151241]
[1771804069962,0.58648042,82.669,82.635,0.57151241]
[1771804071365,0.58648042,82.669,82.637,0.57151241]
[1771804071964,0.58648042,82.692,82.641,0.57151241]
[1771804072165,0.58648042,82.689,82.641,0.57151241]
[1771804075373,3.15364498,82.69,82.64,3.15364498]
[1771804075374,0.58648042,82.687,82.643,0.57151241]
[1771804077576,0.58648042,82.685,82.645,0.57151241]
[1771804077764,0.58648042,82.685,82.65,3.15057935]
[1771804077950,0.58648042,82.685,82.651,0.57151241]
[1771804080866,12.68057753,82.685,82.653,0.57151241]
[1771804081072,0.58648042,82.684,82.653,0.57151241]
[1771804082874,0.58648042,82.677,82.652,12.09892077]
[1771804086757,12.09540858,82.676,82.632,0.57151241]
[1771804086963,0.58648042,82.659,82.632,0.57151241]
[1771804088380,0.58648042,82.659,82.626,0.56097023]
[1771804088683,0.55545653,82.649,82.62,0.56097023]
[1771804089056,0.55545653,82.649,82.615,0.56097023]
[1771804091468,0.55545653,82.639,82.611,12.10478127]
[1771804092062,0.55545653,82.639,82.611,12.6657515]
[1771804092471,12.10097049,82.638,82.611,12.6657515]
[1771804092766,0.55545653,82.637,82.611,12.6657515]
[1771804094980,0.55545653,82.637,82.612,0.56097023]
[1771804095663,0.52540248,82.651,82.612,0.56097023]
[1771804095865,0.52540248,82.659,82.612,0.56097023]
[1771804097468,0.52540248,82.659,82.614,0.5128897]
[1771804097671,0.52540248,82.659,82.62,0.5128897]
[1771804098072,0.52540248,82.657,82.613,0.5128897]
[1771804098386,0.52540248,82.657,82.607,12.10542574]
[1771804098387,0.52540248,82.639,82.608,0.5128897]
[1771804098970,3.15057935,82.63,82.608,0.5128897]
[1771804099267,12.09804253,82.658,82.608,0.5128897]
[1771804099268,0.52540248,82.632,82.609,12.10521855]
[1771804099584,0.52540248,82.632,82.61,0.5128897]
[1771804101489,0.52540248,82.632,82.612,0.5128897]
[1771804102464,12.10039395,82.642,82.612,0.5128897]
[1771804104393,12.10039395,82.642,82.613,12.10463244]
[1771804104587,12.10039395,82.642,82.614,0.5128897]
[1771804107799,2.47215037,101.99,82.614,0.5128897]
[1771804108091,0.29998943,82.659,82.62,0.5128897]
[1771804108284,3.45056878,82.65,82.62,0.5128897]
[1771804108789,3.15057935,82.65,82.62,0.5128897]
[1771804110390,12.09848164,82.655,82.622,0.5128897]
[1771804110598,0.29630679,82.654,82.622,0.5128897]
[1771804111288,0.29630679,82.649,82.622,0.5128897]
[1771804111491,0.29630679,82.639,82.621,12.10346037]
[1771804112187,0.29510734,82.649,82.623,0.5128897]
[1771804112797,0.29510734,82.649,82.625,0.5128897]
[1771804112978,3.15057935,82.65,82.625,0.5128897]
[1771804113583,12.09848164,82.655,82.625,0.5128897]
[1771804114101,12.09739558,82.663,82.625,0.5128897]
[1771804114398,3.15057935,82.66,82.625,0.5128897]
[1771804114796,3.44217035,82.66,82.627,0.5128897]
[1771804114980,0.291591,82.659,82.627,0.5128897]
[1771804115797,0.29044571,82.69,82.629,0.5128897]
[1771804115990,0.29044571,82.687,82.641,0.5128897]
[1771804117092,0.28931357,82.686,82.643,0.5128897]
[1771804117287,0.28931357,82.686,82.648,0.28432314]
[1771804117480,0.28931357,82.686,82.649,0.5128897]
[1771804118292,3.15057935,82.68,82.649,0.5128897]
[1771804118802,0.28599459,82.669,82.649,0.5128897]
[1771804119302,0.28599459,82.669,82.65,12.09921355]
[1771804119596,3.15057935,82.67,82.651,0.52463263]
[1771804119805,0.28491358,82.679,82.651,0.52463263]
[1771804120900,3.15057935,82.68,82.653,0.52463263]
[1771804121101,0.28384499,82.685,82.653,0.52463263]
[1771804122802,12.09394577,82.686,82.655,0.52463263]
[1771804126287,12.09394577,82.686,82.641,30.25131784]
[1771804126288,12.3726291,82.686,82.657,0.52463263]
[1771804126511,0.2776863,82.7,82.657,0.52463263]
[1771804126806,0.2776863,82.708,82.661,0.52463263]
[1771804127212,0.2776863,82.699,82.661,0.52463263]
[1771804129796,0.2776863,82.699,82.662,42.34109989]
[1771804129993,0.2776863,82.699,82.663,0.52463263]
[1771804130799,0.2776863,82.699,82.665,0.52463263]
[1771804131008,0.27381137,82.709,82.669,0.52463263]
[1771804132807,0.27381137,82.709,82.671,0.52463263]
[1771804133016,0.27194003,82.726,82.681,0.52463263]
[1771804133698,3.15057935,82.72,82.681,0.52463263]
[1771804133902,0.27102045,82.719,82.681,0.52463263]
[1771804135007,0.27102045,82.719,82.683,0.52463263]
[1771804135320,3.62069079,82.73,82.689,0.52463263]
[1771804135620,0.47011144,82.73,82.689,0.52463263]
[1771804135993,3.15057935,82.72,82.689,0.52463263]
[1771804136190,0.26921286,82.729,82.691,0.52463263]
[1771804137210,0.26921286,82.729,82.693,0.52463263]
[1771804137401,0.2683246,82.727,82.693,0.52463263]
[1771804138908,0.26657858,82.719,82.687,12.61829188]
[1771804139106,0.26657858,82.719,82.688,0.52463263]
[1771804140504,0.26657858,82.719,82.689,12.09350699]
[1771804140724,0.26657858,82.719,82.69,0.52463263]
[1771804141625,0.26403404,82.709,82.684,0.52463263]
[1771804144531,3.14762253,82.71,82.678,12.61973582]
[1771804144532,0.26157617,82.707,82.678,12.61973582]
[1771804144824,0.26157617,82.707,82.679,0.52463263]
[1771804146015,0.26077563,82.711,82.681,0.52463263]
[1771804146412,0.26077563,82.709,82.681,0.52463263]
[1771804148306,12.08917203,82.719,82.673,42.33537242]
[1771804148307,0.25842876,82.699,82.673,12.09575369]
[1771804150229,0.25842876,82.699,82.669,12.60956079]
[1771804150529,0.25842876,82.699,82.67,0.51312803]
[1771804152543,0.25842876,82.699,82.672,0.51312803]
[1771804156032,0.25185699,82.697,82.665,0.49050115]
[1771804156330,0.25185699,82.689,82.665,0.49050115]
[1771804157634,0.25185699,82.689,82.666,0.49050115]
[1771804161821,0.25185699,82.689,82.668,0.49050115]
[1771804189438,3.69383402,82.717,82.668,0.49050115]
[1771804189439,0.23237462,82.693,82.668,0.49050115]
[1771804191148,0.2314497,82.692,82.668,0.49050115]
[1771804193463,12.0876597,82.729,82.68,3.14762253]
[1771804195954,3.14762253,82.72,82.682,0.51978537]
[1771804196634,3.14762253,82.71,82.681,12.09467713]
[1771804196840,3.14762253,82.7,82.673,12.09577055]
[1771804198657,3.14762253,82.7,82.673,0.51978537]
[1771804199156,3.14762253,82.68,82.646,0.51978537]
[1771804199458,42.32215624,82.699,82.641,0.51978537]
[1771804199667,3.15235724,82.69,82.641,0.51978537]
[1771804200667,12.09350699,82.689,82.65,3.15235724]
[1771804200967,3.15235724,82.69,82.651,0.51978537]
[1771804202556,3.15235724,82.69,82.653,0.51978537]
[1771804203351,12.09350699,82.689,82.653,0.51978537]
[1771804203548,3.15235724,82.68,82.652,12.09892077]
[1771804203747,3.15235724,82.68,82.653,0.51978537]
[1771804204444,3.15235724,82.68,82.654,12.09862801]
[1771804204645,3.15235724,82.68,82.655,0.51978537]
[1771804205760,3.15235724,82.68,82.656,12.09833526]
[1771804206061,3.15235724,82.68,82.657,0.51978537]
[1771804206267,3.15235724,82.69,82.657,0.51978537]
[1771804206467,3.15235724,82.69,82.656,12.09833526]
[1771804206468,3.15235724,82.71,82.661,0.51978537]
[1771804207552,12.09058264,82.709,82.663,0.51978537]
[1771804210660,42.31703925,82.709,82.665,0.51978537]
[1771804210866,3.15235724,82.7,82.665,0.51978537]
[1771804213473,3.15235724,82.7,82.667,0.51978537]
[1771804213663,12.09204464,82.699,82.667,0.51978537]
[1771804215675,12.09204464,82.699,82.668,12.09657908]
[1771804215882,12.09204464,82.699,82.669,0.51978537]
[1771804217072,12.09204464,82.699,82.67,12.09628644]
[1771804217274,12.09204464,82.699,82.671,0.51978537]
[1771804221468,3.15235724,82.7,82.671,0.51978537]
[1771804223583,3.15235724,82.7,82.658,0.28432314]
[1771804223584,12.09204464,82.699,82.673,0.51978537]
[1771804229183,3.15235724,82.71,82.673,0.51978537]
[1771804231484,12.09058264,82.709,82.673,0.51978537]
[1771804234089,3.15235724,82.71,82.551,33.50649921]
[1771804234090,12.08882871,82.721,82.681,0.51978537]
[1771804234673,3.15235724,82.72,82.681,0.51978537]
[1771804237994,12.089121,82.719,82.683,0.51978537]
[1771804240277,12.089121,82.719,82.685,0.51978537]
[1771804243596,12.089121,82.719,82.687,0.51978537]
[1771804244584,0.2,82.73,82.691,0.51978537]
[1771804244897,0.2,82.73,82.701,0.51978537]
[1771804245275,12.2861568,82.74,82.691,0.47400868]
[1771804245475,12.2861568,82.74,82.712,0.47400868]
[1771804245675,15.43851404,82.74,82.712,0.47400868]
[1771804247795,3.15235724,82.72,82.659,5.36086188]
[1771804247996,3.64010497,82.72,82.67,3.15235724]
[1771804248199,3.64010497,82.72,82.671,0.28432314]
[1771804248901,3.64010497,82.72,82.67,3.15235724]
[1771804248902,15.72921467,82.72,82.673,0.28432314]
[1771804249277,15.72921467,82.72,82.68,3.15235724]
[1771804249683,3.15235724,82.71,82.673,0.47400868]
[1771804251494,15.24281731,82.71,82.674,12.09570118]
[1771804251694,15.24281731,82.71,82.675,0.47400868]
[1771804252300,12.09046007,82.71,82.675,0.47400868]
[1771804253385,12.08926714,82.718,82.676,12.09540858]
[1771804253587,12.08926714,82.718,82.677,0.47400868]
[1771804254493,0.48774773,82.717,82.677,0.47400868]
[1771804254707,0.48774773,82.717,82.681,0.47400868]
[1771804255905,0.48774773,82.715,82.681,0.47400868]
[1771804257807,0.48774773,82.699,82.667,0.47400868]
[1771804257983,0.48774773,82.689,82.667,0.47400868]
[1771804259697,0.48774773,82.699,82.667,0.47400868]
[1771804261006,3.15235724,82.72,82.681,0.47400868]
[1771804261308,0.48774773,82.719,82.681,0.47400868]
[1771804262384,12.08926714,82.718,82.682,12.09453085]
[1771804262599,0.48774773,82.717,82.683,0.47400868]
[1771804264094,12.08955945,82.716,82.683,0.47400868]
[1771804264298,0.48774773,82.715,82.683,0.47400868]
[1771804265801,0.48774773,82.715,82.685,0.47400868]
[1771804268118,0.48774773,82.713,82.685,0.47400868]
[1771804269604,0.49616602,82.711,82.685,0.47400868]
[1771804272615,0.49616602,82.709,82.671,0.49999321]
[1771804272814,0.49616602,82.699,82.665,0.49999321]
[1771804273607,0.49616602,82.699,82.67,0.49999321]
[1771804274802,0.49616602,82.697,82.67,0.49999321]
[1771804277022,0.49616602,82.697,82.671,12.09614012]
[1771804277821,0.49616602,82.697,82.671,12.57819845]
[1771804278203,0.49616602,82.697,82.672,0.48205833]
[1771804279220,0.46753854,82.709,82.681,0.48205833]
[1771804280212,0.46753854,82.707,82.668,0.28432314]
[1771804280417,0.46753854,82.707,82.669,0.48205833]
[1771804280920,0.46753854,82.699,82.669,0.48205833]
[1771804282718,0.46753854,82.699,82.671,0.48205833]
[1771804283721,0.46753854,82.699,82.672,12.0959938]
[1771804283910,0.46753854,82.699,82.673,0.48205833]
[1771804288521,0.46753854,82.699,82.675,0.48205833]
[1771804295419,0.46753854,82.699,82.677,0.48205833]
[1771804298646,0.48392595,82.718,82.679,0.46717524]
[1771804300950,0.48392595,82.709,82.68,12.56199865]
[1771804301148,0.48392595,82.709,82.68,12.09482341]
[1771804301450,0.48392595,82.709,82.681,0.46717524]
[1771804303354,0.48392595,82.709,82.682,12.09453085]
[1771804303547,0.48392595,82.709,82.683,0.46717524]
[1771804304646,12.09072882,82.708,82.683,0.46717524]
[1771804304841,0.48392595,82.707,82.683,0.46717524]
[1771804305050,0.48392595,82.707,82.684,12.0942383]
[1771804306242,0.48392595,82.707,82.684,12.56141354]
[1771804306544,0.48392595,82.707,82.685,0.46717524]
[1771804309653,0.48392595,82.699,82.677,0.46717524]
[1771804310560,0.48392595,82.698,82.672,0.46717524]
[1771804310855,12.09215657,82.699,82.639,0.46717524]
[1771804310856,0.48392595,82.679,82.639,0.46717524]
[1771804311160,0.48392595,82.679,82.646,0.28432314]
[1771804311461,0.48392595,82.679,82.649,0.46717524]
[1771804311653,0.48392595,82.679,82.651,0.46717524]
[1771804312349,0.48392595,82.689,82.651,0.46717524]
[1771804312552,3.1483391,82.69,82.651,0.46717524]
[1771804313155,3.63226505,82.69,82.651,0.46717524]
[1771804313352,0.48392595,82.689,82.651,0.46717524]
[1771804314255,0.48392595,82.689,82.653,0.46717524]
[1771804316363,0.48392595,82.689,82.655,0.46717524]
[1771804318566,0.48392595,82.689,82.657,0.46717524]
[1771804320370,0.48392595,82.689,82.658,12.09804253]
[1771804320671,0.48392595,82.689,82.659,0.46717524]
[1771804323275,0.48392595,82.689,82.66,12.09774981]
[1771804323463,0.48392595,82.689,82.661,0.46717524]
[1771804325869,0.48392595,82.689,82.662,12.09745711]
[1771804326081,0.48392595,82.689,82.663,0.46717524]
[1771804327972,0.48392595,82.689,82.665,0.46717524]
[1771804336993,0.47660308,82.688,82.665,0.46717524]
[1771804341196,0.47660308,82.688,82.667,0.4722756]
[1771804352712,0.47660308,82.688,82.641,0.14216157]
[1771804352713,0.47660308,82.693,82.669,0.4722756]
[1771804353600,0.47660308,82.689,82.671,0.4722756]
[1771804354287,3.15053672,82.68,82.661,0.4722756]
[1771804354486,0.47660308,82.679,82.661,0.4722756]
[1771804355497,0.47660308,82.679,82.661,12.5698348]
[1771804356910,0.47660308,82.669,82.629,0.4722756]
[1771804357119,0.47660308,82.659,82.629,0.4722756]
[1771804357506,0.47660308,82.659,82.631,0.4722756]
[1771804358316,0.47660308,82.656,82.631,0.4722756]
[1771804359021,0.49202649,82.649,82.631,0.4722756]
[1771804362821,0.49202649,82.649,82.618,30.25966884]
[1771804362822,0.49202649,82.649,82.627,0.48202717]
[1771804363420,0.49202649,82.658,82.627,0.48202717]
[1771804364421,0.49202649,82.656,82.627,0.48202717]
[1771804365522,0.49202649,82.656,82.619,30.54370657]
[1771804365830,0.49202649,82.656,82.629,0.48202717]
[1771804367330,0.49202649,82.656,82.63,12.10214207]
[1771804367513,3.15053672,82.65,82.631,0.48202717]
[1771804368617,0.49202649,82.653,82.631,0.48202717]
[1771804369425,0.49202649,82.653,82.633,0.48202717]
[1771804370230,0.49202649,82.656,82.633,0.48202717]
[1771804372026,0.49202649,82.649,82.629,0.48202717]
[1771804374529,0.49202649,82.647,82.621,0.48202717]
[1771804376618,0.49202649,82.647,82.623,0.48202717]
[1771804380737,0.49202649,82.653,82.625,0.48202717]
[1771804380935,0.49202649,82.658,82.625,0.48202717]
[1771804381237,0.49202649,82.682,82.631,0.48202717]
[1771804381429,0.49202649,82.679,82.631,0.48202717]
[1771804382731,0.49202649,82.677,82.633,0.48202717]
[1771804385337,0.49202649,82.675,82.635,0.48202717]
[1771804385939,3.15152471,82.68,82.64,3.15152471]
[1771804386127,0.49202649,82.681,82.641,0.48202717]
[1771804386329,0.49202649,82.681,82.643,0.48202717]
[1771804386642,0.49202649,82.681,82.634,42.35544691]
[1771804386643,0.49202649,82.681,82.651,0.48202717]
[1771804387036,0.49202649,82.725,82.673,0.48202717]
[1771804387341,0.2,82.74,82.671,0.28432314]
[1771804387342,1.08e-06,82.69,82.671,0.28432314]
[1771804387550,0.49202649,82.73,82.671,0.28432314]
[1771804387725,0.49202649,82.73,82.68,0.48202717]
[1771804388446,0.46114639,82.719,82.681,0.49507018]
[1771804390346,0.46114639,82.717,82.683,0.49507018]
[1771804392851,0.46114639,82.717,82.691,0.49507018]
[1771804394856,0.46114639,82.717,82.693,0.49507018]
[1771804396856,0.45684346,82.728,82.695,0.48108067]
[1771804398755,0.45684346,82.726,82.695,0.48108067]
[1771804400749,0.45684346,82.724,82.695,0.48108067]
[1771804406364,12.08853644,82.723,82.695,0.48108067]
[1771804406550,12.08853644,82.723,82.667,3.69383402]
[1771804406551,0.45684346,82.709,82.685,0.48108067]
[1771804409570,0.45684346,82.708,82.685,0.48108067]
[1771804410967,0.45684346,82.705,82.685,0.48108067]
[1771804411765,0.45684346,82.719,82.687,0.48108067]
[1771804412068,3.15152471,82.72,82.687,0.48108067]
[1771804412069,0.45684346,82.716,82.687,0.48108067]
[1771804413571,0.45684346,82.714,82.687,0.48108067]
[1771804417672,0.45684346,82.712,82.687,0.48108067]
[1771804419577,3.15152471,82.72,82.687,0.48108067]
[1771804419578,0.49007092,82.71,82.687,0.48108067]
[1771804425769,0.49007092,82.708,82.687,0.48108067]
[1771804427878,0.49007092,82.699,82.677,0.47505827]
[1771804428078,0.49007092,82.699,82.678,12.09511599]
[1771804428380,0.49007092,82.699,82.678,0.47505827]
[1771804435163,0.49007092,82.729,82.681,0.47505827]
[1771804435565,0.49007092,82.729,82.69,3.15152471]
[1771804435777,0.49007092,82.729,82.701,0.47505827]
[1771804437083,0.49007092,82.735,82.703,0.47505827]
[1771804438687,0.49007092,82.733,82.705,0.47505827]
[1771804440887,12.08722138,82.732,82.705,0.47505827]
[1771804441186,0.49007092,82.731,82.705,0.47505827]
[1771804441790,3.15152471,82.73,82.705,0.47505827]
[1771804441993,0.49007092,82.729,82.705,0.47505827]
[1771804442672,0.49007092,82.729,82.699,0.47505827]
[1771804442868,0.49007092,82.719,82.694,0.47505827]
[1771804444390,0.49007092,82.719,82.695,12.09262954]
[1771804444593,0.49007092,82.719,82.696,0.47505827]
[1771804446094,12.08619876,82.739,82.696,0.47505827]
[1771804446393,1e-08,82.74,82.731,0.47505827]
[1771804448891,1e-08,82.74,82.733,0.47424454]
[1771804450389,1e-08,82.75,82.734,0.47424454]
[1771804452097,1e-08,82.75,82.736,0.47424454]
[1771804453883,0.46102422,82.781,82.741,0.47424454]
[1771804454181,0.46102422,82.788,82.761,0.47424454]
[1771804455380,0.46102422,82.788,82.763,0.47424454]
[1771804456390,0.46102422,82.788,82.765,0.46020225]
[1771804456697,0.67788987,82.78,82.765,0.46020225]
[1771804457082,0.2,82.78,82.765,0.46020225]
[1771804459693,0.2,82.78,82.766,12.54245824]
[1771804459900,0.2,82.79,82.768,0.46020225]
[1771804460197,0.47788987,82.817,82.791,0.46020225]
[1771804461699,0.47788987,82.817,82.792,12.07846168]
[1771804463787,0.47788987,82.817,82.792,0.46020225]
[1771804465098,0.47788987,82.817,82.793,12.53851804]
[1771804465396,0.47788987,82.817,82.794,0.46020225]
[1771804468096,0.47788987,82.817,82.796,0.46020225]
[1771804468601,30.1780329,82.842,82.795,12.07802403]
[1771804468602,0.47788987,82.845,82.812,0.46020225]
[1771804468903,0.47788987,82.859,82.831,0.46020225]
[1771804470182,0.47788987,82.859,82.833,0.46020225]
[1771804471201,0.47788987,82.859,82.832,12.07262893]
[1771804471808,3.14795998,82.86,82.833,0.46020225]
[1771804472105,3.14795998,82.86,82.832,12.07262893]
[1771804472106,0.47788987,82.874,82.841,0.46020225]
[1771804472398,0.47788987,82.874,82.843,0.46020225]
[1771804472609,0.47788987,82.874,82.85,3.60816223]
[1771804472791,0.47788987,82.874,82.851,0.46020225]
[1771804475102,0.47788987,82.874,82.852,12.06971467]
[1771804475490,3.14795998,82.89,82.853,0.46020225]
[1771804475687,0.47788987,82.889,82.853,0.46020225]
[1771804477814,0.47788987,82.887,82.854,12.06942332]
[1771804479607,0.47788987,82.887,82.824,3.69383402]
[1771804479608,0.4764345,82.869,82.834,0.48088612]
[1771804479798,0.4764345,82.867,82.832,12.07262893]
[1771804479998,0.4764345,82.859,82.832,12.07262893]
[1771804481802,0.4764345,82.859,82.827,12.07335772]
[1771804482413,0.4764345,82.859,82.827,12.55424384]
[1771804482619,0.4764345,82.859,82.828,0.48088612]
[1771804485204,0.4764345,82.859,82.831,0.48088612]
[1771804485605,0.4764345,82.858,82.829,12.07306619]
[1771804486614,0.4764345,82.849,82.811,0.48088612]
[1771804487321,0.4764345,82.847,82.811,0.48088612]
[1771804487711,0.4764345,82.847,82.8,3.14795998]
[1771804487712,0.4764345,82.847,82.812,12.55643072]
[1771804488016,0.4764345,82.859,82.821,0.48088612]
[1771804488215,0.4764345,82.859,82.82,3.14795998]
[1771804488415,0.4764345,82.849,82.815,0.48088612]
[1771804490222,0.4764345,82.849,82.817,0.48088612]
[1771804490919,0.4764345,82.849,82.821,0.48088612]
[1771804492326,0.4764345,82.859,82.831,0.48088612]
[1771804492730,0.4764345,82.87,82.841,0.48088612]
[1771804493334,0.4764345,82.89,82.851,0.48088612]
[1771804493532,3.14795998,82.89,82.851,0.48088612]
[1771804493716,0.4764345,82.889,82.851,0.48088612]
[1771804494817,0.4764345,82.889,82.85,3.14795998]
[1771804494818,12.06447254,82.888,82.853,0.48088612]
[1771804495733,3.14795998,82.89,82.853,0.48088612]
[1771804496037,12.06432699,82.889,82.853,0.48088612]
[1771804496836,0.4764345,82.879,82.854,12.06942332]
[1771804497125,0.4764345,82.879,82.854,12.55030944]
[1771804497517,0.4764345,82.879,82.855,0.48088612]
[1771804499132,3.14795998,82.87,82.843,30.17749826]
[1771804499427,0.4764345,82.869,82.844,0.48088612]
[1771804500142,0.4764345,82.889,82.851,0.48088612]
[1771804501332,0.4764345,82.889,82.852,12.06971467]
[1771804501634,0.4764345,82.889,82.853,0.48088612]
[1771804504529,0.4764345,82.909,82.871,0.48088612]
[1771804506931,0.4764345,82.909,82.873,0.48088612]
[1771804507632,0.4764345,82.899,82.872,12.06680181]
[1771804508536,0.49831155,82.889,82.872,12.06680181]
[1771804508738,0.49831155,82.889,82.869,0.46390599]
[1771804516138,0.49831155,82.889,82.852,0.46185646]
[1771804516139,12.06447254,82.888,82.852,0.46185646]
[1771804516341,0.4581451,82.859,82.758,0.46185646]
[1771804516538,0.28432314,82.868,82.801,0.46185646]
[1771804516539,0.4581451,82.839,82.801,0.46185646]
[1771804518344,0.4581451,82.839,82.803,0.46185646]
[1771804518845,0.4581451,82.838,82.803,0.46185646]
[1771804521153,12.5298996,82.838,82.804,12.07671126]
[1771804521451,0.4581451,82.837,82.805,0.46185646]
[1771804521640,0.4581451,82.819,82.796,12.53964674]
[1771804522141,0.4581451,82.819,82.797,0.46185646]
[1771804522829,0.4581451,82.819,82.798,12.07758641]
[1771804523943,2.78388904,82.82,82.798,0.46185646]
[1771804525031,12.07452396,82.819,82.798,0.46185646]
[1771804525241,12.07452396,82.819,82.782,0.46185646]
[1771804525950,0.4581451,82.818,82.784,0.46185646]
[1771804528036,3.13386551,82.81,82.786,0.46185646]
[1771804528237,0.4581451,82.809,82.786,0.46185646]
[1771804528437,0.4581451,82.817,82.786,0.46185646]
[1771804530467,3.13386551,82.81,82.787,12.07919117]
[1771804530763,0.4581451,82.809,82.787,12.54104763]
[1771804531956,0.4581451,82.807,82.78,0.46185646]
[1771804534362,0.4581451,82.807,82.782,0.46185646]
[1771804535758,0.4581451,82.829,82.782,0.46185646]
[1771804536143,3.59201061,82.82,82.782,0.46185646]
[1771804536459,0.4581451,82.819,82.784,0.46185646]
[1771804538070,0.4581451,82.819,82.786,0.46185646]
[1771804538567,0.49156232,82.809,82.78,0.48272115]
[1771804539368,12.56551915,82.823,82.791,0.48272115]
[1771804539747,0.49156232,82.822,82.791,0.48272115]
[1771804539948,0.49156232,82.819,82.791,0.48272115]
[1771804540251,0.49156232,82.819,82.792,12.56118283]
[1771804540568,0.49156232,82.819,82.793,0.48272115]
[1771804541068,3.13386551,82.82,82.793,0.48272115]
[1771804541265,3.13386551,82.82,82.795,0.48272115]
[1771804541465,3.62542783,82.82,82.795,0.48272115]
[1771804541652,0.49156232,82.819,82.795,0.48272115]
[1771804541846,0.49156232,82.819,82.794,12.07816991]
[1771804542068,0.49156232,82.818,82.794,12.07816991]
[1771804543653,0.49156232,82.818,82.789,12.56162052]
[1771804543856,3.62542783,82.81,82.789,12.56162052]
[1771804544050,0.49156232,82.809,82.783,12.07967228]
[1771804545875,0.49156232,82.807,82.783,12.07967228]
[1771804547073,0.49156232,82.807,82.779,0.48272115]
[1771804548669,0.49156232,82.807,82.781,0.48272115]
[1771804550373,0.49156232,82.807,82.783,0.48272115]
[1771804551576,3.13386551,82.83,82.791,0.48272115]
[1771804551775,0.49156232,82.829,82.791,0.48272115]
[1771804552462,0.49156232,82.819,82.793,0.48272115]
[1771804555381,0.49156232,82.819,82.795,0.48272115]
[1771804557391,0.49156232,82.819,82.797,0.48272115]
[1771804559463,0.49156232,82.819,82.799,0.48272115]
[1771804559766,0.49156232,82.826,82.799,0.48272115]
[1771804561584,0.49156232,82.824,82.799,0.48272115]
[1771804562482,0.49156232,82.819,82.794,0.48272115]
[1771804564075,0.49156232,82.829,82.796,0.48272115]
[1771804564271,0.49156232,82.845,82.801,0.48272115]
[1771804564481,3.13386551,82.84,82.801,0.48272115]
[1771804564674,0.49156232,82.845,82.801,0.48272115]
[1771804565293,3.62542783,82.84,82.801,0.48272115]
[1771804565487,0.49156232,82.839,82.803,0.48272115]
[1771804566486,0.49156232,82.829,82.803,0.48272115]
[1771804566687,0.49156232,82.819,82.802,12.07700297]
[1771804566887,0.49156232,82.819,82.796,0.48272115]
[1771804567387,0.49156232,82.819,82.798,0.48272115]
[1771804576285,3.14051566,82.84,82.791,0.49290199]